[Event "POL-chT 1 Liga 2019"]
[Site "Dzwirzyno"]
[Date "2019.09.15"]
[Round "9.18"]
[White "Cieslak, Wiktoria"]
[Black "Kantane, Anna"]
[Result "1/2-1/2"]
[ECO "B47"]
[WhiteElo "2063"]
[BlackElo "2273"]
[Annotator "NA"]
[PlyCount "121"]
[EventDate "2019.09.07"]
[EventType "team-tourn"]
[EventCountry "POL"]
[SourceTitle "playchess.com"]
[Source "ChessBase"]
[SourceQuality "1"]
[TimeControl "40/5400+30:1800+30"]

1. e4 {[%emt 0:00:00]} c5 {[%emt 0:03:45]} 2. Nf3 {[%emt 0:00:00]} e6 {[%emt 0:00:08]} 3. d4 {[%emt 0:00:00]} cxd4 {[%emt 0:00:06]} 4. Nxd4 {[%emt 0:00:00]} Nc6 {[%emt 0:00:09]} 5. Nc3 {[%emt 0:00:00]} Qc7 {[%emt 0:00:10]} 6. Qd3 {[%emt 0:00:04]} a6 {[%emt 0:03:12]} 7. Nxc6 {[%emt 0:00:24]} bxc6 {[%emt 0:00:55]} 8. Qg3 {[%emt 0:01:24]} Qb8 {[%emt 0:08:18]} 9. Qxb8 {[%emt 0:02:48]} Rxb8 {[%emt 0:01:22]} 10. b3 {[%emt 0:00:08]} Bb4 {[%emt 0:02:09]} 11. Bd2 $11 {[%emt 0:00:05]} d5 {[%emt 0:04:21]} 12. exd5 {[%emt 0:00:59]} cxd5 {[%emt 0:02:25]} 13. O-O-O {[%emt 0:01:23]} Bb7 {[%emt 0:04:50]} 14. Kb2 {[%emt 0:02:12]} Nf6 {[%emt 0:00:54]} 15. f3 {[%emt 0:01:42]} O-O {[%emt 0:03:16]} 16. a3 {[%emt 0:07:41]} Bd6 {[%emt 0:01:57]} 17. Bd3 {[%emt 0:10:04]} Rfc8 {[%emt 0:01:32]} 18. Rde1 {[%emt 0:05:18]} Nd7 {[%emt 0:02:57]} 19. f4 {[%emt 0:05:30]} Be7 {[%emt 0:11:36]} 20. Nd1 {[%emt 0:13:23]} Bf6+ {[%emt 0:02:25]} 21. Kb1 {[%emt 0:03:20]} Nc5 {[%emt 0:00:49]} 22. Nf2 {[%emt 0:00:25]} Ba8 {[%emt 0:05:35]} 23. Bb4 {[%emt 0:02:32]} a5 {[%emt 0:09:15]} 24. Bxc5 {[%emt 0:02:16]} Rxc5 {[%emt 0:00:02]} 25. Re2 {[%emt 0:01:11]} a4 {[%emt 0:12:43]} 26. b4 {[%emt 0:01:16]} Rc3 {[%emt 0:00:11]} 27. Ka2 {[%emt 0:00:06]} Rbc8 {[%emt 0:00:48]} 28. Nd1 {[%emt 0:04:05]} R3c7 {[%emt 0:12:22]} 29. Nb2 {[%emt 0:01:34]} Bc6 {[%emt 0:01:20]} 30. Rb1 {[%emt 0:05:18]} d4 {[%emt 0:01:13]} 31. Nd1 {[%emt 0:00:29]} Bd5+ {[%emt 0:00:04]} 32. Kb2 {[%emt 0:00:05]} h5 {[%emt 0:01:39]} 33. g3 {[%emt 0:01:27]} g5 {[%emt 0:02:07]} 34. Nf2 {[%emt 0:01:15]} Bf3 {[%emt 0:00:02]} 35. Rd2 {[%emt 0:03:50]} Kf8 {[%emt 0:01:03]} 36. Re1 {[%emt 0:01:49]} gxf4 {[%emt 0:00:42]} 37. gxf4 {[%emt 0:00:05]} e5 {[%emt 0:01:27]} 38. fxe5 {[%emt 0:02:21]} Bg5 {[%emt 0:00:06]} 39. Rde2 {[%emt 0:00:10]} Bxe2 {[%emt 0:00:36]} 40. Rxe2 {[%emt 0:00:00]} Bf4 {[%emt 0:00:00]} 41. e6 {[%emt 0:02:42]} Bxh2 {[%emt 0:11:50]} 42. exf7 {[%emt 0:01:35]} Rxf7 {[%emt 0:00:25]} 43. Bg6 {[%emt 0:00:42]} Re7 {[%emt 0:03:19]} 44. Rxe7 {[%emt 0:19:36]} Kxe7 {[%emt 0:00:07]} 45. Bxh5 {[%emt 0:00:02]} Be5 {[%emt 0:02:35]} 46. Nd3 {[%emt 0:00:18]} Kd6 {[%emt 0:00:20]} 47. Bf3 {[%emt 0:01:39]} Bg7 {[%emt 0:02:54]} 48. Bd1 {[%emt 0:05:21]} Bf6 {[%emt 0:01:58]} 49. Ka2 {[%emt 0:01:37]} Rc7 {[%emt 0:06:05]} 50. Nb2 {[%emt 0:00:55]} Ra7 {[%emt 0:00:19]} 51. Be2 {[%emt 0:00:39]} Kc6 {[%emt 0:00:33]} 52. Bd3 {[%emt 0:01:26]} Kb6 {[%emt 0:01:42]} 53. Nc4+ {[%emt 0:01:09]} Kc6 {[%emt 0:00:13]} 54. Be4+ {[%emt 0:00:33]} Kc7 {[%emt 0:01:58]} 55. b5 {[%emt 0:03:37]} Kb8 {[%emt 0:00:01]} 56. b6 {[%emt 0:00:18]} Re7 {[%emt 0:01:07]} 57. Bf3 {[%emt 0:03:02]} Re6 {[%emt 0:00:14]} 58. b7 {[%emt 0:00:42]} Bd8 {[%emt 0:00:21]} 59. Nb2 {[%emt 0:04:51]} Rf6 {[%emt 0:00:38]} 60. Be4 {[%emt 0:00:40]} Re6 {[%emt 0:00:27]} 61. Bd5 {[%emt 0:04:12]} 1/2-1/2

[Event "POL-chT 1 Liga 2019"]
[Site "Dzwirzyno"]
[Date "2019.09.15"]
[Round "9.21"]
[White "Wacior, Maciej"]
[Black "Protaziuk, Grzegorz"]
[Result "1/2-1/2"]
[ECO "A45"]
[WhiteElo "2116"]
[BlackElo "2334"]
[Annotator "NA"]
[PlyCount "177"]
[EventDate "2019.09.07"]
[EventType "team-tourn"]
[EventCountry "POL"]
[SourceTitle "playchess.com"]
[Source "ChessBase"]
[SourceQuality "1"]
[TimeControl "40/5400+30:1800+30"]

1. d4 {[%emt 0:00:00]} Nf6 {[%emt 0:00:00]} 2. Bf4 {[%emt 0:00:00]} c5 {[%emt 0:01:16]} 3. e3 {[%emt 0:00:00]} e6 {[%emt 0:10:25]} 4. c3 {[%emt 0:00:02]} b6 {[%emt 0:01:53]} 5. Nf3 {[%emt 0:01:35]} Bb7 {[%emt 0:00:32]} 6. Nbd2 {[%emt 0:00:47]} Be7 $11 {[%emt 0:00:32]} 7. Bd3 {[%emt 0:00:21]} cxd4 {[%emt 0:06:41]} 8. exd4 {[%emt 0:00:17]} d6 {[%emt 0:00:08]} 9. Qe2 {[%emt 0:05:24]} Nbd7 {[%emt 0:01:46]} 10. Ne4 {[%emt 0:15:11]} Nxe4 {[%emt 0:01:15]} 11. Bxe4 {[%emt 0:00:05]} Bxe4 {[%emt 0:00:29]} 12. Qxe4 {[%emt 0:00:01]} Rc8 {[%emt 0:01:50]} 13. h3 {[%emt 0:02:23]} Nf6 {[%emt 0:02:08]} 14. Qd3 {[%emt 0:00:16]} h6 {[%emt 0:01:23]} 15. O-O {[%emt 0:08:43]} O-O {[%emt 0:00:11]} 16. Qa6 {[%emt 0:02:14]} Rc7 {[%emt 0:02:43]} 17. Rfe1 {[%emt 0:03:24]} Qc8 {[%emt 0:00:42]} 18. Qd3 {[%emt 0:00:03]} Qb7 {[%emt 0:02:22]} 19. a4 {[%emt 0:02:36]} Rd8 {[%emt 0:01:42]} 20. Nd2 {[%emt 0:02:04]} Qd5 {[%emt 0:08:33]} 21. Qb5 {[%emt 0:07:27]} Rcd7 {[%emt 0:04:18]} 22. Qxd5 {[%emt 0:04:13]} Nxd5 {[%emt 0:02:01]} 23. Bg3 {[%emt 0:00:22]} Rc8 {[%emt 0:01:51]} 24. Re2 {[%emt 0:01:46]} Bg5 {[%emt 0:03:02]} 25. Ne4 {[%emt 0:01:08]} Bf4 {[%emt 0:02:21]} 26. Bxf4 {[%emt 0:02:31]} Nxf4 {[%emt 0:00:07]} 27. Re3 {[%emt 0:00:06]} Nd5 {[%emt 0:00:40]} 28. Rd3 {[%emt 0:02:08]} Kf8 {[%emt 0:01:19]} 29. g3 {[%emt 0:00:16]} Ne7 {[%emt 0:00:50]} 30. Nd2 {[%emt 0:01:10]} d5 {[%emt 0:02:24]} 31. Nb3 {[%emt 0:01:14]} Rb7 {[%emt 0:00:50]} 32. Rd2 {[%emt 0:00:47]} Nf5 {[%emt 0:01:28]} 33. a5 {[%emt 0:01:43]} bxa5 {[%emt 0:04:06]} 34. Nc5 {[%emt 0:00:05]} Rb5 {[%emt 0:00:07]} 35. b3 {[%emt 0:00:01]} Nd6 {[%emt 0:00:57]} 36. Rda2 {[%emt 0:00:08]} Nb7 {[%emt 0:00:58]} 37. c4 {[%emt 0:00:29]} dxc4 {[%emt 0:01:11]} 38. bxc4 {[%emt 0:00:02]} Rb4 {[%emt 0:00:09]} 39. Nxb7 {[%emt 0:00:30]} Rxb7 {[%emt 0:00:03]} 40. c5 {[%emt 0:00:00]} Rb4 {[%emt 0:00:00]} 41. Rxa5 {[%emt 0:02:19]} Rxd4 {[%emt 0:01:07]} 42. Rxa7 {[%emt 0:00:17]} Rxc5 {[%emt 0:01:00]} 43. Ra8+ {[%emt 0:00:04]} Ke7 {[%emt 0:00:04]} 44. R1a7+ {[%emt 0:00:01]} Rd7 {[%emt 0:00:08]} 45. Rxd7+ {[%emt 0:00:06]} Kxd7 {[%emt 0:00:03]} 46. h4 {[%emt 0:01:00]} Ke7 {[%emt 0:00:43]} 47. Kg2 {[%emt 0:00:08]} Rc6 {[%emt 0:01:15]} 48. Ra5 {[%emt 0:00:06]} Kf6 {[%emt 0:00:07]} 49. Kf3 {[%emt 0:00:18]} Kg6 {[%emt 0:00:26]} 50. Rb5 {[%emt 0:01:33]} f5 {[%emt 0:00:14]} 51. Ra5 {[%emt 0:00:05]} Kf6 {[%emt 0:00:10]} 52. Rb5 {[%emt 0:00:14]} Rc3+ {[%emt 0:00:54]} 53. Ke2 {[%emt 0:00:17]} Ra3 {[%emt 0:00:11]} 54. Rc5 {[%emt 0:00:09]} Ra2+ {[%emt 0:00:33]} 55. Kf3 {[%emt 0:00:30]} g5 {[%emt 0:00:30]} 56. hxg5+ {[%emt 0:00:30]} hxg5 {[%emt 0:00:30]} 57. g4 {[%emt 0:00:30]} f4 {[%emt 0:00:30]} 58. Rb5 {[%emt 0:00:30]} Rd2 {[%emt 0:00:30]} 59. Ra5 {[%emt 0:00:30]} Rd5 {[%emt 0:00:30]} 60. Ra1 {[%emt 0:00:30]} Rb5 {[%emt 0:00:30]} 61. Ke4 {[%emt 0:04:43]} Rb2 {[%emt 0:00:56]} 62. Kf3 {[%emt 0:00:07]} Rc2 {[%emt 0:01:24]} 63. Ra5 {[%emt 0:00:17]} Rc3+ {[%emt 0:00:46]} 64. Ke4 {[%emt 0:00:18]} Rc4+ {[%emt 0:00:11]} 65. Kf3 {[%emt 0:00:05]} e5 {[%emt 0:01:23]} 66. Ra6+ {[%emt 0:00:20]} Kf7 {[%emt 0:00:04]} 67. Ra5 {[%emt 0:01:56]} Ke6 {[%emt 0:01:56]} 68. Ra6+ {[%emt 0:00:48]} Kd5 {[%emt 0:00:10]} 69. Rg6 {[%emt 0:04:47]} Rc3+ {[%emt 0:01:42]} 70. Kg2 {[%emt 0:00:32]} Ke4 {[%emt 0:00:30]} 71. Ra6 {[%emt 0:05:37]} Kd3 {[%emt 0:06:48]} 72. Rg6 {[%emt 0:00:40]} e4 {[%emt 0:01:39]} 73. Rxg5 {[%emt 0:00:09]} Rc2 {[%emt 0:11:05]} 74. Rd5+ {[%emt 0:07:15]} Ke2 {[%emt 0:00:06]} 75. Re5 {[%emt 0:13:48]} e3 {[%emt 0:00:08]} 76. fxe3 {[%emt 0:00:04]} f3+ {[%emt 0:00:04]} 77. Kg3 {[%emt 0:00:32]} f2 {[%emt 0:00:23]} 78. Rf5 {[%emt 0:00:01]} f1=Q {[%emt 0:00:08]} 79. Rxf1 {[%emt 0:00:01]} Kxf1 {[%emt 0:00:04]} 80. g5 {[%emt 0:00:24]} Rg2+ {[%emt 0:03:26]} 81. Kf4 {[%emt 0:00:07]} Ke2 {[%emt 0:00:06]} 82. Kf5 {[%emt 0:03:21]} Kxe3 {[%emt 0:00:05]} 83. g6 {[%emt 0:00:01]} Kd4 {[%emt 0:01:45]} 84. Kf6 {[%emt 0:00:04]} Rf2+ {[%emt 0:02:14]} 85. Ke7 {[%emt 0:00:19]} Ke5 {[%emt 0:00:59]} 86. g7 {[%emt 0:00:16]} Rg2 {[%emt 0:00:06]} 87. Kf7 {[%emt 0:00:10]} Rf2+ {[%emt 0:00:05]} 88. Ke7 {[%emt 0:00:03]} Rg2 {[%emt 0:00:04]} 89. Kf7 {[%emt 0:00:02]} 1/2-1/2

[Event "POL-chT 1 Liga 2019"]
[Site "Dzwirzyno"]
[Date "2019.09.15"]
[Round "9.22"]
[White "Nurkiewicz, Maciej"]
[Black "Kowalski, Maciej"]
[Result "1-0"]
[ECO "B01"]
[WhiteElo "2334"]
[BlackElo "2095"]
[Annotator "ChessBase"]
[PlyCount "51"]
[EventDate "2019.09.07"]
[EventType "team-tourn"]
[EventCountry "POL"]
[SourceTitle "playchess.com"]
[Source "ChessBase"]
[SourceQuality "1"]
[TimeControl "40/5400+30:1800+30"]

1. e4 d5 {[%emt 0:00:00]} 2. exd5 {[%emt 0:00:00]} Nf6 {[%emt 0:00:00]} 3. d4 {[%emt 0:00:19]} Nxd5 {[%emt 0:00:00]} 4. Nf3 {[%emt 0:01:33]} g6 {[%emt 0:00:00]} 5. c4 {[%emt 0:00:14]} Nb6 {[%emt 0:00:00]} 6. c5 {[%emt 0:00:11]} Nd5 {[%emt 0:00:00]} 7. Bc4 {[%emt 0:00:19]} Bg7 {[%emt 0:00:00]} 8. Nc3 {[%emt 0:00:18]} c6 {[%emt 0:00:42]} 9. O-O {[%emt 0:02:41]} O-O {[%emt 0:00:04]} 10. Re1 {[%emt 0:01:27]} Be6 {[%emt 0:08:25]} 11. Qb3 {[%emt 0:06:07]} Nxc3 {[%emt 0:00:27]} 12. bxc3 {[%emt 0:05:34]} Bxc4 {[%emt 0:00:30]} 13. Qxc4 {[%emt 0:00:30]} b5 {[%emt 0:00:27]} 14. Qe2 {[%emt 0:03:04]} Bf6 {[%emt 0:13:18]} 15. a4 {[%emt 0:02:32]} Qa5 {[%emt 0:00:34]} 16. Bh6 {[%emt 0:06:02]} Re8 {[%emt 0:04:54]} 17. axb5 {[%emt 0:01:12]} Qxc3 {[%emt 0:00:08]} 18. Qe4 {[%emt 0:04:13]} a5 {[%emt 0:04:14]} 19. bxc6 {[%emt 0:05:39]} a4 {[%emt 0:01:08]} 20. Ne5 {[%emt 0:20:14]} Bg7 {[%emt 0:16:15]} 21. Bxg7 {[%emt 0:03:24]} Kxg7 {[%emt 0:00:02]} 22. Rec1 {[%emt 0:04:38]} Qb3 {[%emt 0:04:10]} 23. Rab1 {[%emt 0:01:25]} Qa2 {[%emt 0:01:04]} 24. Nc4 {[%emt 0:02:58]} a3 {[%emt 0:02:25]} 25. Nd6 {[%emt 0:00:07]} Rf8 {[%emt 0:00:22]} 26. c7 {[%emt 0:00:10]} 1-0

[Event "POL-chT 1 Liga 2019"]
[Site "Dzwirzyno"]
[Date "2019.09.15"]
[Round "9.23"]
[White "Rogala, Milosz"]
[Black "Bartel, Michal"]
[Result "0-1"]
[ECO "C55"]
[WhiteElo "1788"]
[BlackElo "2291"]
[Annotator "ChessBase"]
[PlyCount "48"]
[EventDate "2019.09.07"]
[EventType "team-tourn"]
[EventCountry "POL"]
[SourceTitle "playchess.com"]
[Source "ChessBase"]
[SourceQuality "1"]
[TimeControl "40/5400+30:1800+30"]

1. e4 {[%emt 0:00:00]} e5 {[%emt 0:00:00]} 2. Nf3 {[%emt 0:00:00]} Nc6 {[%emt 0:00:00]} 3. d4 {[%emt 0:00:18]} exd4 {[%emt 0:00:00]} 4. Bc4 {[%emt 0:00:13]} Nf6 {[%emt 0:00:07]} 5. e5 {[%emt 0:00:22]} Ng4 {[%emt 0:00:15]} 6. Bxf7+ {[%emt 0:02:11]} Kxf7 {[%emt 0:00:12]} 7. Ng5+ {[%emt 0:00:07]} Kg8 {[%emt 0:00:30]} 8. Qf3 {[%emt 0:00:22]} Bb4+ {[%emt 0:03:46]} 9. c3 {[%emt 0:32:03]} Ngxe5 {[%emt 0:09:03]} 10. Qd5+ {[%emt 0:04:25]} Kf8 {[%emt 0:00:04]} 11. f4 {[%emt 0:05:47]} Nd3+ {[%emt 0:08:30]} 12. Kd2 {[%emt 0:03:56]} Qf6 {[%emt 0:01:06]} 13. Kxd3 {[%emt 0:02:22]} d6 {[%emt 0:00:17]} 14. Ne4 {[%emt 0:05:23]} Bf5 {[%emt 0:01:03]} 15. g4 {[%emt 0:05:59]} Bxe4+ {[%emt 0:01:27]} 16. Qxe4 {[%emt 0:00:08]} Re8 {[%emt 0:00:21]} 17. Qg2 {[%emt 0:01:23]} dxc3 {[%emt 0:01:28]} 18. bxc3 {[%emt 0:00:17]} Bc5 {[%emt 0:04:54]} 19. Rf1 {[%emt 0:01:32]} Qg6+ {[%emt 0:01:39]} 20. f5 {[%emt 0:00:40]} Ne5+ {[%emt 0:00:17]} 21. Kc2 {[%emt 0:00:30]} Qxg4 {[%emt 0:00:07]} 22. Qg3 {[%emt 0:03:12]} Qa4+ {[%emt 0:01:37]} 23. Kd2 {[%emt 0:00:49]} Nc4+ {[%emt 0:00:18]} 24. Kd3 {[%emt 0:01:07]} Nb2+ {[%emt 0:00:41] Kd4} 0-1

[Event "POL-chT 1 Liga 2019"]
[Site "Dzwirzyno"]
[Date "2019.09.15"]
[Round "9.24"]
[White "Kulon, Klaudia"]
[Black "Sapis, Lucyna"]
[Result "1-0"]
[ECO "A36"]
[WhiteElo "2339"]
[BlackElo "2042"]
[Annotator "ChessBase"]
[PlyCount "71"]
[EventDate "2019.09.07"]
[EventType "team-tourn"]
[EventCountry "POL"]
[SourceTitle "playchess.com"]
[Source "ChessBase"]
[SourceQuality "1"]
[TimeControl "40/5400+30:1800+30"]

1. c4 {[%emt 0:00:00]} c5 {[%emt 0:00:00]} 2. g3 {[%emt 0:00:00]} g6 {[%emt 0:00:03]} 3. Bg2 {[%emt 0:00:00]} Bg7 {[%emt 0:00:08]} 4. Nc3 {[%emt 0:00:00]} Nc6 {[%emt 0:00:24]} 5. e3 {[%emt 0:00:00]} d6 {[%emt 0:01:40]} 6. Nge2 {[%emt 0:03:43]} e5 {[%emt 0:04:15]} 7. d3 {[%emt 0:00:12]} Nge7 {[%emt 0:00:17]} 8. O-O {[%emt 0:00:07]} O-O {[%emt 0:00:06]} 9. a3 {[%emt 0:00:12]} f5 {[%emt 0:00:59]} 10. Rb1 {[%emt 0:00:35]} a5 {[%emt 0:01:01]} 11. Bd2 {[%emt 0:02:19]} Be6 {[%emt 0:01:29]} 12. Nd5 {[%emt 0:00:05]} a4 {[%emt 0:02:21]} 13. Nec3 {[%emt 0:00:14]} Bxd5 {[%emt 0:02:50]} 14. cxd5 {[%emt 0:03:13]} Na5 {[%emt 0:00:41]} 15. Qxa4 {[%emt 0:00:27]} b6 {[%emt 0:02:13]} 16. Rfc1 {[%emt 0:02:09]} Nb7 {[%emt 0:01:53]} 17. Qb3 {[%emt 0:02:00]} Kh8 {[%emt 0:02:00]} 18. f4 {[%emt 0:01:06]} Rb8 {[%emt 0:09:17]} 19. Nb5 {[%emt 0:01:50]} Qd7 {[%emt 0:00:54]} 20. a4 {[%emt 0:00:36]} Nc8 {[%emt 0:06:42]} 21. Rf1 {[%emt 0:02:28]} Ra8 {[%emt 0:05:55]} 22. e4 {[%emt 0:01:51]} Na5 {[%emt 0:01:11]} 23. Qc2 {[%emt 0:00:41]} Na7 {[%emt 0:00:51]} 24. Na3 {[%emt 0:00:58]} Rab8 {[%emt 0:03:57]} 25. Bc3 {[%emt 0:04:24]} Rbe8 {[%emt 0:13:31]} 26. Rbe1 {[%emt 0:02:37]} Nb7 {[%emt 0:01:08]} 27. exf5 {[%emt 0:01:56]} gxf5 {[%emt 0:02:20]} 28. fxe5 {[%emt 0:00:08]} dxe5 {[%emt 0:00:28]} 29. Nc4 {[%emt 0:00:06]} Qc7 {[%emt 0:02:34]} 30. Bxe5 {[%emt 0:03:06]} Bxe5 {[%emt 0:01:21]} 31. Rxe5 {[%emt 0:00:05]} Rxe5 {[%emt 0:00:25]} 32. Qc3 {[%emt 0:00:04]} Rfe8 {[%emt 0:01:06]} 33. Re1 {[%emt 0:00:05]} Qg7 {[%emt 0:00:31]} 34. Nxe5 {[%emt 0:00:24]} Nd6 {[%emt 0:00:42]} 35. Nf7+ {[%emt 0:00:25]} Kg8 {[%emt 0:01:02]} 36. Nxd6 {[%emt 0:00:05]} 1-0

[Event "POL-chT 1 Liga 2019"]
[Site "Dzwirzyno"]
[Date "2019.09.15"]
[Round "9.25"]
[White "Klekowski, Maciej"]
[Black "Kolago, Marcin"]
[Result "1-0"]
[ECO "A41"]
[WhiteElo "2473"]
[BlackElo "2340"]
[Annotator "ChessBase"]
[PlyCount "83"]
[EventDate "2019.09.07"]
[EventType "team-tourn"]
[EventCountry "POL"]
[SourceTitle "playchess.com"]
[Source "ChessBase"]
[SourceQuality "1"]
[TimeControl "40/5400+30:1800+30"]

1. c4 {[%emt 0:00:00]} g6 {[%emt 0:01:32]} 2. d4 {[%emt 0:00:00]} Bg7 {[%emt 0:00:10]} 3. Nc3 {[%emt 0:01:32]} d6 {[%emt 0:00:24]} 4. Nf3 {[%emt 0:00:31]} Nd7 {[%emt 0:00:22]} 5. g3 {[%emt 0:00:48]} e5 {[%emt 0:00:16]} 6. Bg2 {[%emt 0:00:05]} Ne7 {[%emt 0:00:23]} 7. O-O {[%emt 0:06:04]} O-O {[%emt 0:01:15]} 8. e4 {[%emt 0:01:39]} Nc6 {[%emt 0:04:43]} 9. Bg5 {[%emt 0:01:58]} Bf6 {[%emt 0:02:30]} 10. Bxf6 {[%emt 0:12:19]} Nxf6 {[%emt 0:00:46]} 11. h3 {[%emt 0:00:09]} a6 {[%emt 0:17:34]} 12. Rc1 {[%emt 0:06:31]} Rb8 {[%emt 0:01:22]} 13. c5 {[%emt 0:03:49]} Re8 {[%emt 0:05:18]} 14. d5 {[%emt 0:01:49]} Ne7 {[%emt 0:00:36]} 15. b4 {[%emt 0:02:22]} Rf8 {[%emt 0:01:03]} 16. Nd2 {[%emt 0:01:50]} Ne8 {[%emt 0:01:08]} 17. f4 {[%emt 0:00:59]} f6 {[%emt 0:08:14]} 18. fxe5 {[%emt 0:00:47]} fxe5 {[%emt 0:00:35]} 19. Rxf8+ {[%emt 0:00:06]} Kxf8 {[%emt 0:00:10]} 20. Qf3+ {[%emt 0:00:04]} Kg8 {[%emt 0:06:41]} 21. Rf1 {[%emt 0:00:09]} Nf5 {[%emt 0:02:45]} 22. exf5 {[%emt 0:00:17]} gxf5 {[%emt 0:00:02]} 23. Nc4 {[%emt 0:00:43]} b6 {[%emt 0:02:32]} 24. c6 {[%emt 0:00:22]} Ng7 {[%emt 0:01:01]} 25. Ne3 {[%emt 0:03:51]} h5 {[%emt 0:00:51]} 26. h4 {[%emt 0:00:06]} Qe8 {[%emt 0:00:57]} 27. Bh3 {[%emt 0:00:49]} Qg6 {[%emt 0:00:11]} 28. Nxf5 {[%emt 0:01:46]} Bxf5 {[%emt 0:01:12]} 29. Bxf5 {[%emt 0:00:04]} Nxf5 {[%emt 0:00:12]} 30. Qxf5 {[%emt 0:00:03]} Qxg3+ {[%emt 0:00:24]} 31. Kh1 {[%emt 0:00:02]} Qxh4+ {[%emt 0:00:39]} 32. Kg2 {[%emt 0:00:04]} Kh8 {[%emt 0:03:29]} 33. Qf6+ {[%emt 0:00:03]} Qxf6 {[%emt 0:00:11]} 34. Rxf6 {[%emt 0:00:04]} Kg7 {[%emt 0:00:07]} 35. Ne4 {[%emt 0:00:08]} Rh8 {[%emt 0:01:20]} 36. Kh3 {[%emt 0:00:22]} h4 {[%emt 0:00:09]} 37. a4 {[%emt 0:00:25]} Rh5 {[%emt 0:01:10]} 38. Rxd6 {[%emt 0:00:08]} cxd6 {[%emt 0:00:25]} 39. Nxd6 {[%emt 0:00:40]} e4 {[%emt 0:00:27]} 40. c7 {[%emt 0:00:00]} Rh8 {[%emt 0:00:00]} 41. Nxe4 {[%emt 0:00:16]} Kf7 {[%emt 0:00:26]} 42. c8=Q {[%emt 0:00:08]} 1-0

[Event "POL-chT 1 Liga 2019"]
[Site "Dzwirzyno"]
[Date "2019.09.15"]
[Round "9.26"]
[White "Zezulkin, Jurij"]
[Black "Barski, Radoslaw"]
[Result "0-1"]
[ECO "B90"]
[WhiteElo "2434"]
[BlackElo "2425"]
[Annotator "NA"]
[PlyCount "104"]
[EventDate "2019.09.07"]
[EventType "team-tourn"]
[EventCountry "POL"]
[SourceTitle "playchess.com"]
[Source "ChessBase"]
[SourceQuality "1"]
[TimeControl "40/5400+30:1800+30"]

1. e4 {[%emt 0:00:00]} c5 {[%emt 0:00:00]} 2. Nc3 {[%emt 0:01:49]} a6 {[%emt 0:00:00]} 3. Nf3 {[%emt 0:01:28]} d6 {[%emt 0:00:07]} 4. d4 {[%emt 0:00:09]} cxd4 {[%emt 0:00:05]} 5. Nxd4 {[%emt 0:00:04]} Nf6 {[%emt 0:00:08]} 6. Be3 {[%emt 0:00:27]} e6 {[%emt 0:00:08]} 7. f3 {[%emt 0:00:23]} b5 {[%emt 0:00:11]} 8. g4 {[%emt 0:00:11]} b4 {[%emt 0:00:09]} 9. Nce2 {[%emt 0:25:11] B80: Sicilian Scheveningen: 6 g3 and 6 Be3, including English Attack} h6 {[%emt 0:00:20]} 10. c4 {[%emt 0:08:21]} e5 {[%emt 0:10:46]} 11. Nc2 {[%emt 0:01:47]} a5 {[%emt 0:01:23]} 12. Ng3 {[%emt 0:02:30]} Be6 {[%emt 0:01:58]} 13. h4 {[%emt 0:03:14]} Nc6 {[%emt 0:02:49]} 14. Bf2 {[%emt 0:14:34] [#]} a4 $146 {[%emt 0:11:22]} ({Predecessor:} 14... g6 15. Ne3 Bg7 16. Rc1 O-O {0-1 (43) Vallejo Pons,F (2650)-Anand,V (2792) Monte Carlo 2006}) 15. Be2 {[%emt 0:02:51]} Nd7 {[%emt 0:04:34]} 16. Ne3 {[%emt 0:07:49]} Nc5 {[%emt 0:02:33]} 17. Nd5 {[%emt 0:00:40]} g6 {[%emt 0:06:30]} 18. h5 {[%emt 0:00:34]} Bg7 {[%emt 0:01:21]} 19. hxg6 {[%emt 0:01:07]} fxg6 {[%emt 0:00:13]} 20. Be3 {[%emt 0:05:36]} Qa5 {[%emt 0:05:58]} 21. Kf2 $11 {[%emt 0:01:31]} O-O-O {[%emt 0:12:48]} 22. Qd2 {[%emt 0:03:23]} h5 {[%emt 0:01:42]} 23. gxh5 {[%emt 0:00:45]} gxh5 {[%emt 0:00:08]} 24. Rxh5 {[%emt 0:01:58]} Rxh5 {[%emt 0:01:41]} 25. Nxh5 {[%emt 0:00:02]} Rf8 {[%emt 0:00:35]} 26. Ng3 {[%emt 0:03:23]} Rh8 {[%emt 0:06:30]} 27. Rg1 {[%emt 0:05:22]} Rh2+ {[%emt 0:03:29]} 28. Rg2 {[%emt 0:00:06]} Rxg2+ {[%emt 0:02:27]} 29. Kxg2 {[%emt 0:00:02]} a3 {[%emt 0:06:08]} 30. bxa3 {[%emt 0:00:03]} Qxa3 {[%emt 0:00:04]} 31. Ne7+ {[%emt 0:00:24]} Nxe7 {[%emt 0:00:15]} 32. Qxd6 {[%emt 0:00:03]} Qxe3 {[%emt 0:00:11]} 33. Qxe7 {[%emt 0:02:07]} Bh6 {[%emt 0:01:35]} 34. Qe8+ {[%emt 0:01:23]} Kb7 {[%emt 0:04:26]} 35. Qb5+ {[%emt 0:03:34]} Kc7 {[%emt 0:03:08]} 36. Qa5+ {[%emt 0:00:02]} Kd7 {[%emt 0:01:00]} 37. Qa7+ {[%emt 0:00:29]} Ke8 {[%emt 0:02:08]} 38. Qb8+ {[%emt 0:00:12]} Kf7 {[%emt 0:01:20]} 39. Qxe5 {[%emt 0:02:12]} Bf4 {[%emt 0:00:47]} 40. Qh5+ {[%emt 0:00:00]} Ke7 {[%emt 0:00:00]} 41. Bf1 {[%emt 0:02:35]} Bxg3 {[%emt 0:22:58]} 42. Kxg3 {[%emt 0:02:28]} Nxe4+ {[%emt 0:00:17]} 43. Kh2 {[%emt 0:03:20]} Qf4+ {[%emt 0:00:38]} 44. Kg1 {[%emt 0:00:25]} Qg3+ {[%emt 0:04:41]} 45. Bg2 {[%emt 0:00:07]} Ng5 {[%emt 0:00:23]} 46. Kh1 {[%emt 0:00:55]} Bxc4 {[%emt 0:04:16]} 47. Qh6 {[%emt 0:01:34]} Qf4 {[%emt 0:01:01]} 48. Qc6 {[%emt 0:00:57]} Be6 {[%emt 0:03:21]} 49. Qb7+ {[%emt 0:04:53]} Kf6 {[%emt 0:00:22]} 50. Qa8 {[%emt 0:00:05]} Nf7 {[%emt 0:01:15]} 51. Qa6 {[%emt 0:03:04]} Qh4+ {[%emt 0:00:21]} 52. Kg1 {[%emt 0:00:03]} Qd4+ 0-1